[Event "FIDE WCCC Open-12 2024"]
[Site "Montesilvano"]
[Date "2024.11.19"]
[Round "5.22"]
[White "Aadik Theophane Lenin"]
[Black "Ambartsumian, Tyhran"]
[Result "0-1"]
[ECO "E12"]
[WhiteElo "1857"]
[BlackElo "2123"]
[Annotator "RC"]
[PlyCount "186"]
[EventDate "2024.11.18"]
[EventType "swiss"]
[EventCountry "ITA"]
[SourceTitle "playchess.com"]
[Source "ChessBase"]
[SourceQuality "1"]
[TimeControl "5400+30"]

1. d4 {[%emt 0:00:31]} Nf6 {[%emt 0:00:44]} 2. Nf3 {[%emt 0:00:13]} e6 {[%emt 0:00:16]} 3. c4 {[%emt 0:00:25]} b6 {[%emt 0:00:12]} 4. a3 {[%emt 0:00:24]} Bb7 {[%emt 0:00:07]} 5. Bf4 {[%emt 0:00:13]} c5 {[%emt 0:00:06]} 6. Nc3 {[%emt 0:11:36]} cxd4 {[%emt 0:00:23]} 7. Nxd4 {[%emt 0:01:28]} a6 {[%emt 0:06:56]} 8. Qd3 {[%emt 0:20:15]} d6 {[%emt 0:06:53]} 9. Bd2 {[%emt 0:13:16]} Nbd7 {[%emt 0:05:17]} 10. Qc2 {[%emt 0:02:19]} Rc8 {[%emt 0:06:18]} 11. e4 {[%emt 0:00:52]} g6 {[%emt 0:02:42]} 12. Be2 {[%emt 0:06:01]} Bg7 {[%emt 0:00:55]} 13. O-O {[%emt 0:03:21]} O-O {[%emt 0:00:11]} 14. Rad1 {[%emt 0:08:22]} Qc7 {[%emt 0:05:43]} 15. h3 {[%emt 0:02:28]} Nc5 {[%emt 0:05:48]} 16. Bf3 {[%emt 0:02:42]} Nfd7 {[%emt 0:55:59]} 17. Be3 {[%emt 0:00:29]} Ne5 {[%emt 0:00:00]} 18. Be2 {[%emt 0:00:18]} Ncd7 {[%emt 0:00:00]} 19. b3 {[%emt 0:03:22]} Nf6 {[%emt 0:00:00]} 20. f4 {[%emt 0:04:01]} Ned7 {[%emt 0:00:00]} 21. Bf3 {[%emt 0:06:03]} e5 {[%emt 0:00:00]} 22. Nde2 {[%emt 0:00:13]} exf4 {[%emt 0:00:00]} 23. Nxf4 {[%emt 0:02:25]} Ne5 {[%emt 0:00:00]} 24. Bd4 {[%emt 0:03:44]} Rfe8 {[%emt 0:00:00]} 25. Qf2 {[%emt 0:00:42]} Nfd7 {[%emt 0:00:00]} 26. Nfd5 {[%emt 0:00:56]} Bxd5 {[%emt 0:00:00]} 27. Nxd5 {[%emt 0:00:05]} Qb7 {[%emt 0:00:00]} 28. Bg4 {[%emt 0:02:03]} Nc5 {[%emt 0:00:00]} 29. Bxc8 {[%emt 0:00:33]} Rxc8 {[%emt 0:00:00]} 30. Bxe5 {[%emt 0:01:47]} Bxe5 {[%emt 0:00:00]} 31. Qf3 {[%emt 0:01:05]} Rf8 {[%emt 0:00:00]} 32. b4 {[%emt 0:01:27]} Ne6 {[%emt 0:00:00]} 33. Rfe1 {[%emt 0:00:50]} Kg7 {[%emt 0:00:00]} 34. Kh1 {[%emt 0:01:19]} h5 {[%emt 0:00:00]} 35. Qe3 {[%emt 0:00:42]} Rb8 {[%emt 0:00:00]} 36. Rf1 {[%emt 0:00:11]} Qc6 {[%emt 0:00:00]} 37. Rc1 {[%emt 0:00:49]} Rb7 {[%emt 0:00:00]} 38. Qd2 {[%emt 0:00:51]} Qc8 {[%emt 0:00:00]} 39. a4 {[%emt 0:00:29]} Qd8 {[%emt 0:00:00]} 40. Rf3 {[%emt 0:00:42]} Qh4 {[%emt 0:00:00]} 41. Qe1 {[%emt 0:00:28]} Qd8 {[%emt 0:00:00]} 42. Qd2 {[%emt 0:00:05]} a5 {[%emt 0:00:00]} 43. Rcf1 {[%emt 0:00:40]} Qh4 {[%emt 0:00:00]} 44. bxa5 {[%emt 0:00:47]} bxa5 {[%emt 0:00:00]} 45. Qxa5 {[%emt 0:00:11]} Ng5 {[%emt 0:00:00]} 46. Re3 {[%emt 0:00:33]} Nxe4 {[%emt 0:00:00]} 47. Qe1 {[%emt 0:00:45]} Ng3+ {[%emt 0:00:00]} 48. Rxg3 {[%emt 0:00:33]} Bxg3 {[%emt 0:00:00]} 49. Qe2 {[%emt 0:00:14]} Be5 {[%emt 0:00:00]} 50. Qf3 {[%emt 0:00:53]} Qxc4 {[%emt 0:00:00]} 51. Ne3 {[%emt 0:00:31]} Qa6 {[%emt 0:00:00]} 52. Qd5 {[%emt 0:00:24]} Rc7 {[%emt 0:00:00]} 53. Qb5 {[%emt 0:00:10]} Qa8 {[%emt 0:00:00]} 54. a5 {[%emt 0:00:51]} Rc3 {[%emt 0:00:00]} 55. Qb6 {[%emt 0:00:49]} Ra3 {[%emt 0:00:00]} 56. a6 {[%emt 0:00:32]} Rxa6 {[%emt 0:00:00]} 57. Qc7 {[%emt 0:00:02]} Qe8 {[%emt 0:00:00]} 58. Nd5 {[%emt 0:00:29]} Qe6 {[%emt 0:00:00]} 59. Qb7 {[%emt 0:00:11]} Ra3 {[%emt 0:00:00]} 60. Nf4 {[%emt 0:00:10]} Bxf4 {[%emt 0:00:00]} 61. Qb2+ {[%emt 0:00:05]} Be5 {[%emt 0:00:00]} 62. Qxa3 {[%emt 0:00:01]} Qc4 {[%emt 0:00:00]} 63. Qf3 {[%emt 0:00:11]} f5 {[%emt 0:01:17]} 64. Rd1 {[%emt 0:01:33]} Kf6 {[%emt 0:00:23]} 65. Kg1 {[%emt 0:00:44]} Kg7 {[%emt 0:04:23]} 66. Qb7+ {[%emt 0:00:07]} Kh6 {[%emt 0:00:07]} 67. Qd5 {[%emt 0:00:14]} Qa4 {[%emt 0:00:24]} 68. Rf1 {[%emt 0:00:38]} Qa7+ {[%emt 0:00:26]} 69. Kh1 {[%emt 0:00:05]} h4 {[%emt 0:03:26]} 70. Qc4 {[%emt 0:01:49]} Qe7 {[%emt 0:00:14]} 71. Qc1+ {[%emt 0:00:27]} Kh7 {[%emt 0:00:12]} 72. Qe3 {[%emt 0:00:17]} Kg7 {[%emt 0:01:12]} 73. Ra1 {[%emt 0:01:10]} f4 {[%emt 0:00:49]} 74. Qe4 {[%emt 0:00:25]} d5 {[%emt 0:01:45]} 75. Qe2 {[%emt 0:00:16]} Qf6 {[%emt 0:07:49]} 76. Ra5 {[%emt 0:00:40]} Qd6 {[%emt 0:00:49]} 77. Qd3 {[%emt 0:01:28]} Qb4 {[%emt 0:00:16]} 78. Ra7+ {[%emt 0:00:00]} Kh6 {[%emt 0:00:23]} 79. Qd1 {[%emt 0:00:00]} f3 {[%emt 0:00:51]} 80. gxf3 {[%emt 0:00:20]} Qb2 {[%emt 0:00:21]} 81. Qg1 {[%emt 0:00:16]} Bd4 {[%emt 0:00:58]} 82. Ra2 {[%emt 0:00:16]} Qxa2 {[%emt 0:00:05]} 83. Qxd4 {[%emt 0:00:02]} Qb1+ {[%emt 0:00:07]} 84. Kg2 {[%emt 0:00:14]} Qc2+ {[%emt 0:00:11]} 85. Kh1 {[%emt 0:00:06]} Qc1+ {[%emt 0:00:34]} 86. Kh2 {[%emt 0:00:09]} Qc7+ {[%emt 0:00:12]} 87. Kh1 {[%emt 0:00:06]} Qd8 {[%emt 0:00:51]} 88. f4 {[%emt 0:00:53]} Qe8 {[%emt 0:01:17]} 89. Qd2 {[%emt 0:02:43]} Qe4+ {[%emt 0:00:09]} 90. Kg1 {[%emt 0:00:01]} Qf3 {[%emt 0:00:49]} 91. Qg2 {[%emt 0:00:55]} Qxg2+ {[%emt 0:01:11]} 92. Kxg2 {[%emt 0:00:01]} Kg7 {[%emt 0:00:05]} 93. Kf3 {[%emt 0:00:08]} Kf6 {[%emt 0:00:09]} 0-1

[Event "FIDE WCCC Open-12 2024"]
[Site "Montesilvano"]
[Date "2024.11.19"]
[Round "5.23"]
[White "Batbaatar, Baatar"]
[Black "Huseynov, Ahmed"]
[Result "1-0"]
[ECO "C15"]
[WhiteElo "2030"]
[BlackElo "1886"]
[Annotator "RC"]
[PlyCount "85"]
[EventDate "2024.11.18"]
[EventType "swiss"]
[EventCountry "ITA"]
[SourceTitle "playchess.com"]
[Source "ChessBase"]
[SourceQuality "1"]
[TimeControl "5400+30"]

1. e4 {[%emt 0:00:01]} e6 {[%emt 0:00:06]} 2. d4 {[%emt 0:00:05]} d5 {[%emt 0:00:04]} 3. Nc3 {[%emt 0:00:06]} Bb4 {[%emt 0:00:09]} 4. Nge2 {[%emt 0:00:06]} Nf6 {[%emt 0:01:30]} 5. e5 {[%emt 0:01:33]} Nfd7 {[%emt 0:00:08]} 6. a3 {[%emt 0:00:27]} Be7 {[%emt 0:00:06]} 7. f4 {[%emt 0:03:15]} g6 {[%emt 0:00:48]} 8. Be3 {[%emt 0:02:16]} c5 {[%emt 0:00:22]} 9. Qd2 {[%emt 0:00:37]} Nc6 {[%emt 0:01:15]} 10. dxc5 {[%emt 0:01:01]} Qa5 {[%emt 0:14:16]} 11. Nd4 {[%emt 0:03:04]} Bxc5 {[%emt 0:05:01]} 12. O-O-O {[%emt 0:08:22]} a6 {[%emt 0:06:48]} 13. Kb1 {[%emt 0:16:52]} Nxd4 {[%emt 0:05:56]} 14. Bxd4 {[%emt 0:01:50]} Bxd4 {[%emt 0:00:53]} 15. Qxd4 {[%emt 0:00:14]} Qc5 {[%emt 0:09:04]} 16. Qxc5 {[%emt 0:03:55]} Nxc5 {[%emt 0:00:07]} 17. Bd3 {[%emt 0:00:08]} b5 {[%emt 0:52:27]} 18. b4 {[%emt 0:05:49]} Nd7 {[%emt 0:00:00]} 19. Ne2 {[%emt 0:00:25]} Nb6 {[%emt 0:00:00]} 20. g4 {[%emt 0:07:54]} Ke7 {[%emt 0:00:00]} 21. Nd4 {[%emt 0:04:48]} Bd7 {[%emt 0:00:00]} 22. Rdf1 {[%emt 0:09:17]} Rhc8 {[%emt 0:00:00]} 23. h4 {[%emt 0:08:35]} Rc3 {[%emt 0:00:00]} 24. h5 {[%emt 0:04:23]} Rxa3 {[%emt 0:00:00]} 25. f5 {[%emt 0:06:24]} gxf5 {[%emt 0:00:00]} 26. gxf5 {[%emt 0:04:35]} Nc4 {[%emt 0:00:00]} 27. f6+ {[%emt 0:03:00]} Kd8 {[%emt 0:00:00]} 28. Rfg1 {[%emt 0:00:21]} h6 {[%emt 0:01:35]} 29. Rg8+ {[%emt 0:00:24]} Be8 {[%emt 0:00:04]} 30. Nxe6+ {[%emt 0:00:14]} Kd7 {[%emt 0:00:56]} 31. Ng7 {[%emt 0:00:47]} Nxe5 {[%emt 0:03:06]} 32. Bf5+ {[%emt 0:00:14]} Kc6 {[%emt 0:00:04]} 33. Re1 {[%emt 0:02:17]} Nc4 {[%emt 0:01:33]} 34. Rexe8 {[%emt 0:00:36]} Nd2+ {[%emt 0:00:35]} 35. Kc1 {[%emt 0:00:09]} Nc4 {[%emt 0:00:04]} 36. Kd1 {[%emt 0:00:33]} Ra7 {[%emt 0:00:45]} 37. Re7 {[%emt 0:01:09]} Rc7 {[%emt 0:00:43]} 38. Bd3 {[%emt 0:02:35]} Nb2+ {[%emt 0:00:34]} 39. Ke2 {[%emt 0:00:13]} Nxd3 {[%emt 0:00:08]} 40. cxd3 {[%emt 0:00:02]} Ra2+ {[%emt 0:00:11]} 41. Ke3 {[%emt 0:00:55]} Ra1 {[%emt 0:00:08]} 42. Rxc7+ {[%emt 0:00:09]} Kxc7 {[%emt 0:00:04]} 43. Rf8 {[%emt 0:00:05]} 1-0

[Event "FIDE WCCC Open-12 2024"]
[Site "Montesilvano"]
[Date "2024.11.19"]
[Round "5.24"]
[White "Dauren, Darmen"]
[Black "Marchand, Calix"]
[Result "1/2-1/2"]
[ECO "D00"]
[WhiteElo "1820"]
[BlackElo "2027"]
[Annotator "RC"]
[PlyCount "111"]
[EventDate "2024.11.18"]
[EventType "swiss"]
[EventCountry "ITA"]
[SourceTitle "playchess.com"]
[Source "ChessBase"]
[SourceQuality "1"]
[TimeControl "5400+30"]

1. d4 {[%emt 0:02:19]} d5 {[%emt 0:00:11]} 2. Bg5 {[%emt 0:00:09]} f6 {[%emt 0:01:38]} 3. Bc1 {[%emt 0:00:47]} c5 {[%emt 0:03:06]} 4. dxc5 {[%emt 0:00:55]} e6 {[%emt 0:01:13]} 5. e4 {[%emt 0:04:58]} Bxc5 {[%emt 0:06:36]} 6. exd5 {[%emt 0:01:24]} exd5 {[%emt 0:01:16]} 7. Bd3 {[%emt 0:00:19]} Ne7 {[%emt 0:01:21]} 8. Nd2 {[%emt 0:07:32]} Nbc6 {[%emt 0:01:28]} 9. Nb3 {[%emt 0:00:48]} Bd6 {[%emt 0:00:31]} 10. Ne2 {[%emt 0:02:06]} Qc7 {[%emt 0:01:39]} 11. h3 {[%emt 0:01:10]} Bd7 {[%emt 0:01:26]} 12. c3 {[%emt 0:02:29]} O-O-O {[%emt 0:03:37]} 13. Be3 {[%emt 0:05:52]} Kb8 {[%emt 0:03:14]} 14. Nbd4 {[%emt 0:11:28]} a6 {[%emt 0:01:15]} 15. Nxc6+ {[%emt 0:01:03]} Nxc6 {[%emt 0:05:35]} 16. Qb3 {[%emt 0:00:59]} Ne5 {[%emt 0:12:47]} 17. O-O-O {[%emt 0:03:24]} Nc4 {[%emt 0:09:39]} 18. Bxc4 {[%emt 0:00:55]} dxc4 {[%emt 0:00:12]} 19. Qb6 {[%emt 0:00:18]} Qxb6 {[%emt 0:03:57]} 20. Bxb6 {[%emt 0:00:02]} Bc7 {[%emt 0:01:30]} 21. Bxc7+ {[%emt 0:01:13]} Kxc7 {[%emt 0:00:02]} 22. Rd4 {[%emt 0:02:03]} b5 {[%emt 0:01:47]} 23. Nf4 {[%emt 0:01:17]} Bf5 {[%emt 0:06:18]} 24. Rhd1 {[%emt 0:01:01]} Rde8 {[%emt 0:03:23]} 25. Kd2 {[%emt 0:10:16]} Kc6 {[%emt 0:04:15]} 26. Nd5 {[%emt 0:02:01]} h5 {[%emt 0:03:47]} 27. Re1 {[%emt 0:01:43]} Rxe1 {[%emt 0:01:14]} 28. Kxe1 {[%emt 0:01:29]} Re8+ {[%emt 0:00:01]} 29. Kd2 {[%emt 0:00:46]} Re5 {[%emt 0:03:36]} 30. Ne3 {[%emt 0:00:48]} Bb1 {[%emt 0:01:46]} 31. a3 {[%emt 0:01:11]} g5 {[%emt 0:00:43]} 32. h4 {[%emt 0:02:09]} Re4 {[%emt 0:02:25]} 33. Rxe4 {[%emt 0:01:20]} Bxe4 {[%emt 0:00:07]} 34. f3 {[%emt 0:01:00]} Bg6 {[%emt 0:00:24]} 35. g3 {[%emt 0:00:14]} Kd6 {[%emt 0:01:12]} 36. Ng2 {[%emt 0:01:11]} Ke5 {[%emt 0:01:30]} 37. Ke3 {[%emt 0:00:14]} Bb1 {[%emt 0:01:08]} 38. Kf2 {[%emt 0:02:52]} Bd3 {[%emt 0:01:06]} 39. f4+ {[%emt 0:04:41]} Kf5 {[%emt 0:03:46]} 40. Ne3+ {[%emt 0:01:29]} Kg6 {[%emt 0:00:01]} 41. Nd5 {[%emt 0:06:06]} Be4 {[%emt 0:00:08]} 42. Ne3 {[%emt 0:00:20]} Bd3 {[%emt 0:00:42]} 43. Kf3 {[%emt 0:00:16]} Bb1 {[%emt 0:02:34]} 44. Nd5 {[%emt 0:00:57]} Kf5 {[%emt 0:00:24]} 45. Ne7+ {[%emt 0:00:38]} Ke6 {[%emt 0:00:01]} 46. Nc6 {[%emt 0:00:11]} Kd6 {[%emt 0:02:37]} 47. Nd4 {[%emt 0:00:45]} g4+ {[%emt 0:00:55]} 48. Ke3 {[%emt 0:00:15]} f5 {[%emt 0:00:01]} 49. Ne2 {[%emt 0:01:49]} Kd5 {[%emt 0:00:20]} 50. Nc1 {[%emt 0:00:23]} Kc5 {[%emt 0:00:53]} 51. Ne2 {[%emt 0:01:34]} Kd5 {[%emt 0:00:06]} 52. Nd4 {[%emt 0:00:05]} Be4 {[%emt 0:01:27]} 53. Ke2 {[%emt 0:01:35]} Bd3+ {[%emt 0:00:22]} 54. Kf2 {[%emt 0:01:02]} Bb1 {[%emt 0:00:45]} 55. Ke2 {[%emt 0:00:21]} Bd3+ {[%emt 0:00:05]} 56. Ke3 {[%emt 0:00:05]} 1/2-1/2

[Event "FIDE WCCC Open-12 2024"]
[Site "Montesilvano"]
[Date "2024.11.19"]
[Round "5.25"]
[White "Elhusseiny, Eyad"]
[Black "Berdashkevich, Makar"]
[Result "1/2-1/2"]
[ECO "E15"]
[WhiteElo "2017"]
[BlackElo "1848"]
[Annotator "RC"]
[PlyCount "132"]
[EventDate "2024.11.18"]
[EventType "swiss"]
[EventCountry "ITA"]
[SourceTitle "playchess.com"]
[Source "ChessBase"]
[SourceQuality "1"]
[TimeControl "5400+30"]

1. d4 {[%emt 0:00:02]} Nf6 {[%emt 0:00:21]} 2. c4 {[%emt 0:00:06]} e6 {[%emt 0:01:11]} 3. Nf3 {[%emt 0:00:49]} b6 {[%emt 0:00:43]} 4. g3 {[%emt 0:00:28]} Bb4+ {[%emt 0:01:19]} 5. Bd2 {[%emt 0:00:34]} Bxd2+ {[%emt 0:02:06]} 6. Qxd2 {[%emt 0:00:19]} Ba6 {[%emt 0:07:21]} 7. b3 {[%emt 0:03:49]} Bb7 {[%emt 0:06:11]} 8. Bg2 {[%emt 0:00:14]} c5 {[%emt 0:10:30]} 9. Nc3 {[%emt 0:13:17]} cxd4 {[%emt 0:10:11]} 10. Qxd4 {[%emt 0:00:18]} Nc6 {[%emt 0:01:19]} 11. Qd2 {[%emt 0:01:39]} Ne5 {[%emt 0:04:59]} 12. Qf4 {[%emt 0:18:59]} Qb8 {[%emt 0:06:11]} 13. Qxe5 {[%emt 0:09:42]} Qxe5 {[%emt 0:00:26]} 14. Nxe5 {[%emt 0:00:03]} Bxg2 {[%emt 0:00:16]} 15. Rg1 {[%emt 0:00:10]} Bb7 {[%emt 0:07:49]} 16. Nb5 {[%emt 0:01:45]} Ke7 {[%emt 0:02:43]} 17. Rd1 {[%emt 0:01:16]} d5 {[%emt 0:02:52]} 18. f3 {[%emt 0:03:03]} a6 {[%emt 0:03:10]} 19. Nd4 {[%emt 0:04:56]} Rac8 {[%emt 0:01:58]} 20. Kf2 {[%emt 0:04:07]} dxc4 {[%emt 0:03:45]} 21. Nxc4 {[%emt 0:00:12]} Nd7 {[%emt 0:00:46]} 22. a4 {[%emt 0:01:55]} g6 {[%emt 0:02:47]} 23. e4 {[%emt 0:01:50]} Rc5 {[%emt 0:03:49]} 24. Rge1 {[%emt 0:01:41]} Rd8 {[%emt 0:04:24]} 25. Rd2 {[%emt 0:04:44]} e5 {[%emt 0:05:51]} 26. Ne2 {[%emt 0:00:54]} Bc6 {[%emt 0:04:48]} 27. Nd6 {[%emt 0:04:36]} Ba8 {[%emt 0:04:02]} 28. Red1 {[%emt 0:00:35]} Rc7 {[%emt 0:01:18]} 29. Nc4 {[%emt 0:00:49]} Rb8 {[%emt 0:00:27]} 30. Nc3 {[%emt 0:16:00]} Ra7 {[%emt 0:01:07]} 31. b4 {[%emt 0:05:22]} f6 {[%emt 0:00:20]} 32. Ne3 {[%emt 0:00:51]} Ke8 {[%emt 0:00:56]} 33. Ng4 {[%emt 0:00:51]} Ke7 {[%emt 0:00:23]} 34. Ne3 {[%emt 0:00:29]} Ke8 {[%emt 0:00:22]} 35. h4 {[%emt 0:00:42]} h5 {[%emt 0:00:22]} 36. g4 {[%emt 0:01:23]} Rc8 {[%emt 0:00:30]} 37. Rd3 {[%emt 0:00:00]} hxg4 {[%emt 0:00:37]} 38. fxg4 {[%emt 0:00:00]} Rac7 {[%emt 0:00:27]} 39. Ncd5 {[%emt 0:00:36]} Bxd5 {[%emt 0:00:11]} 40. Rxd5 {[%emt 0:00:12]} Nf8 {[%emt 0:00:44]} 41. h5 {[%emt 0:00:30]} gxh5 {[%emt 0:00:40]} 42. gxh5 {[%emt 0:00:13]} Ne6 {[%emt 0:00:41]} 43. Nf5 {[%emt 0:00:16]} Rc2+ {[%emt 0:00:31]} 44. Kg1 {[%emt 0:00:44]} Nf4 {[%emt 0:00:34]} 45. Nd6+ {[%emt 0:01:28]} Kf8 {[%emt 0:00:19]} 46. Nxc8 {[%emt 0:00:08]} Nxd5 {[%emt 0:00:23]} 47. Rxd5 {[%emt 0:00:07]} Rxc8 {[%emt 0:00:19]} 48. Rd6 {[%emt 0:00:07]} Kg7 {[%emt 0:00:40]} 49. Rxb6 {[%emt 0:00:08]} Rc4 {[%emt 0:00:27]} 50. h6+ {[%emt 0:01:25]} Kxh6 {[%emt 0:00:28]} 51. Rxf6+ {[%emt 0:00:11]} Kg7 {[%emt 0:00:42]} 52. Rb6 {[%emt 0:00:42]} a5 {[%emt 0:00:25]} 53. bxa5 {[%emt 0:00:32]} Rxe4 {[%emt 0:00:42]} 54. Kf2 {[%emt 0:00:44]} Rxa4 {[%emt 0:00:19]} 55. a6 {[%emt 0:00:05]} Kf7 {[%emt 0:00:29]} 56. Ke3 {[%emt 0:00:08]} e4 {[%emt 0:00:33]} 57. Kf4 {[%emt 0:00:52]} e3+ {[%emt 0:00:34]} 58. Kxe3 {[%emt 0:00:07]} Ke7 {[%emt 0:00:05]} 59. Kd3 {[%emt 0:00:20]} Kd7 {[%emt 0:00:08]} 60. Kc3 {[%emt 0:00:18]} Kc7 {[%emt 0:00:04]} 61. Rh6 {[%emt 0:00:14]} Kb8 {[%emt 0:00:10]} 62. Kb3 {[%emt 0:00:04]} Rg4 {[%emt 0:00:18]} 63. Rh7 {[%emt 0:00:13]} Ka8 {[%emt 0:00:09]} 64. Rc7 {[%emt 0:00:13]} Rg6 {[%emt 0:00:13]} 65. Kb4 {[%emt 0:01:05]} Rxa6 {[%emt 0:00:06]} 66. Kb5 {[%emt 0:00:04]} Rh6 {[%emt 0:00:04]} 1/2-1/2

[Event "FIDE WCCC Open-12 2024"]
[Site "Montesilvano"]
[Date "2024.11.19"]
[Round "5.26"]
[White "Wijerathna, Vinuka Dihain"]
[Black "Fadeev, Justin Michael"]
[Result "1-0"]
[ECO "C01"]
[WhiteElo "2004"]
[BlackElo "1878"]
[Annotator "RC"]
[PlyCount "63"]
[EventDate "2024.11.18"]
[EventType "swiss"]
[EventCountry "ITA"]
[SourceTitle "playchess.com"]
[Source "ChessBase"]
[SourceQuality "1"]
[TimeControl "5400+30"]

1. e4 {[%emt 0:00:03]} e6 {[%emt 0:00:07]} 2. d4 {[%emt 0:00:09]} d5 {[%emt 0:00:04]} 3. Nc3 {[%emt 0:00:05]} Bb4 {[%emt 0:00:03]} 4. exd5 {[%emt 0:00:07]} exd5 {[%emt 0:00:06]} 5. Bd3 {[%emt 0:00:07]} Ne7 {[%emt 0:00:31]} 6. Qh5 {[%emt 0:00:30]} h6 {[%emt 0:17:38]} 7. Nge2 {[%emt 0:02:13]} Nd7 {[%emt 0:03:34]} 8. h3 {[%emt 0:09:21]} Nf6 {[%emt 0:03:22]} 9. Qf3 {[%emt 0:00:07]} Nc6 {[%emt 0:03:26]} 10. O-O {[%emt 0:01:13]} O-O {[%emt 0:00:14]} 11. a3 {[%emt 0:02:48]} Ba5 {[%emt 0:04:01]} 12. b4 {[%emt 0:09:34]} Bb6 {[%emt 0:00:15]} 13. Be3 {[%emt 0:00:12]} a6 {[%emt 0:04:03]} 14. Rad1 {[%emt 0:02:25]} Be6 {[%emt 0:03:23]} 15. Rfe1 {[%emt 0:04:42]} Na7 {[%emt 0:04:13]} 16. Nf4 {[%emt 0:09:19]} Nc8 {[%emt 0:06:30]} 17. Qg3 {[%emt 0:05:38]} Kh8 {[%emt 0:06:05]} 18. Nxe6 {[%emt 0:12:37]} fxe6 {[%emt 0:00:12]} 19. Ne2 {[%emt 0:00:04]} c6 {[%emt 0:11:20]} 20. Bf4 {[%emt 0:03:37]} Ne7 {[%emt 0:06:37]} 21. Be5 {[%emt 0:05:48]} Nf5 {[%emt 0:04:23]} 22. Bxf5 {[%emt 0:02:09]} exf5 {[%emt 0:00:12]} 23. Nf4 {[%emt 0:00:05]} Rf7 {[%emt 0:04:45]} 24. Qg6 {[%emt 0:03:07]} Qd7 {[%emt 0:01:58]} 25. Rd3 {[%emt 0:02:16]} Re8 {[%emt 0:03:31]} 26. Rde3 {[%emt 0:02:42]} Ne4 {[%emt 0:11:31]} 27. Qxh6+ {[%emt 0:02:08]} Kg8 {[%emt 0:00:14]} 28. Qh5 {[%emt 0:09:18]} Bc7 {[%emt 0:01:03]} 29. Ng6 {[%emt 0:00:32]} Rfe7 {[%emt 0:00:34]} 30. Qh8+ {[%emt 0:00:10]} Kf7 {[%emt 0:00:05]} 31. Qxg7+ {[%emt 0:00:03]} Ke6 {[%emt 0:00:06]} 32. Nf4# {[%emt 0:00:02]} 1-0

[Event "FIDE WCCC Open-12 2024"]
[Site "Montesilvano"]
[Date "2024.11.19"]
[Round "5.27"]
[White "Antipov, Fedor"]
[Black "Pham, Le Thao Nguyen"]
[Result "1-0"]
[ECO "B53"]
[WhiteElo "1991"]
[BlackElo "2384"]
[Annotator "RC"]
[PlyCount "59"]
[EventDate "2024.11.18"]
[EventType "swiss"]
[EventCountry "ITA"]
[SourceTitle "playchess.com"]
[Source "ChessBase"]
[SourceQuality "1"]
[TimeControl "5400+30"]

1. e4 {[%emt 0:00:01]} c5 {[%emt 0:00:11]} 2. Nf3 {[%emt 0:00:03]} d6 {[%emt 0:00:32]} 3. d4 {[%emt 0:00:03]} cxd4 {[%emt 0:00:20]} 4. Qxd4 {[%emt 0:00:03]} Nc6 {[%emt 0:00:17]} 5. Bb5 {[%emt 0:00:05]} Bd7 {[%emt 0:00:09]} 6. Bxc6 {[%emt 0:00:06]} Bxc6 {[%emt 0:00:12]} 7. Nc3 {[%emt 0:00:11]} Nf6 {[%emt 0:01:02]} 8. Bg5 {[%emt 0:00:08]} e6 {[%emt 0:03:23]} 9. O-O-O {[%emt 0:00:15]} Be7 {[%emt 0:00:30]} 10. Rhe1 {[%emt 0:00:46]} O-O {[%emt 1:01:11]} 11. Qd3 {[%emt 0:13:04]} Qa5 {[%emt 0:04:41]} 12. Bd2 {[%emt 0:04:34]} Qc7 {[%emt 0:08:39]} 13. Nd4 {[%emt 0:01:44]} Rfd8 {[%emt 0:02:49]} 14. f4 {[%emt 0:07:56]} g6 {[%emt 0:05:16]} 15. g4 {[%emt 0:20:22]} Nxg4 {[%emt 0:05:28]} 16. Qg3 {[%emt 0:01:07]} Nf6 {[%emt 0:00:26]} 17. f5 {[%emt 0:01:43]} e5 {[%emt 0:02:23]} 18. fxg6 {[%emt 0:02:36]} exd4 {[%emt 0:00:36]} 19. gxh7+ {[%emt 0:00:10]} Kh8 {[%emt 0:00:01]} 20. Rg1 {[%emt 0:00:31]} Nh5 {[%emt 0:00:06]} 21. Qg4 {[%emt 0:00:47]} Bf6 {[%emt 0:01:16]} 22. Qxh5 {[%emt 0:39:13]} dxc3 {[%emt 0:00:08]} 23. Bxc3 {[%emt 0:01:40]} Bxc3 {[%emt 0:00:19]} 24. bxc3 {[%emt 0:00:19]} Bxe4 {[%emt 0:00:26]} 25. Qh4 {[%emt 0:01:16]} Qxc3 {[%emt 0:02:08]} 26. Qxe4 {[%emt 0:01:10]} Qa1+ {[%emt 0:00:22]} 27. Kd2 {[%emt 0:00:07]} Qe5 {[%emt 0:00:08]} 28. Rde1 {[%emt 0:01:31]} Rac8 {[%emt 0:00:57]} 29. Rg8+ {[%emt 0:00:30]} Rxg8 {[%emt 0:00:28]} 30. hxg8=Q+ {[%emt 0:00:04]} 1-0